[Event "Teplice Open 2019"]
[Site "Teplice"]
[Date "2019.06.18"]
[Round "4.6"]
[White "Mazur, Stefan"]
[Black "Plat, Vojtech"]
[Result "1/2-1/2"]
[ECO "B33"]
[WhiteElo "2426"]
[BlackElo "2547"]
[Annotator "ChessBase"]
[PlyCount "103"]
[EventDate "2019.06.15"]
[EventType "swiss"]
[EventCountry "CZE"]
[SourceTitle "playchess.com"]
[Source "ChessBase"]
[SourceQuality "1"]
[TimeControl "40/5400+30:1800+30"]

1. e4 {[%emt 0:00:00]} c5 {[%emt 0:00:00]} 2. Nf3 {[%emt 0:00:00]} Nc6 {[%emt 0:00:00]} 3. d4 {[%emt 0:00:11]} cxd4 {[%emt 0:00:00]} 4. Nxd4 {[%emt 0:00:05]} Qb6 {[%emt 0:00:04]} 5. Nb3 {[%emt 0:00:28]} Nf6 {[%emt 0:00:06]} 6. Nc3 {[%emt 0:01:56]} e6 {[%emt 0:00:12]} 7. Qe2 {[%emt 0:00:16]} Bb4 {[%emt 0:00:06]} 8. Bd2 {[%emt 0:00:21]} O-O {[%emt 0:00:08]} 9. a3 {[%emt 0:00:16]} Bxc3 {[%emt 0:00:04]} 10. Bxc3 {[%emt 0:00:06]} e5 {[%emt 0:00:04]} 11. O-O-O {[%emt 0:01:26]} a5 {[%emt 0:00:02]} 12. g4 {[%emt 0:00:57]} a4 {[%emt 0:01:56]} 13. Nd2 {[%emt 0:00:12]} d5 {[%emt 0:07:40]} 14. exd5 {[%emt 0:00:17]} Nxd5 {[%emt 0:07:10]} 15. Nc4 {[%emt 0:00:12]} Nxc3 {[%emt 0:01:23]} 16. Nxb6 {[%emt 0:00:11]} Nxe2+ {[%emt 0:00:02]} 17. Bxe2 {[%emt 0:00:11]} Ra5 {[%emt 0:00:06]} 18. c3 {[%emt 0:07:31]} Be6 {[%emt 0:04:32]} 19. Rhe1 {[%emt 0:01:49]} e4 {[%emt 0:00:45]} 20. h3 {[%emt 0:08:49]} Ne5 {[%emt 0:10:51]} 21. Rd4 {[%emt 0:09:22]} f5 {[%emt 0:00:09]} 22. Bc4 {[%emt 0:07:41]} Nxc4 {[%emt 0:07:00]} 23. Nxc4 {[%emt 0:00:08]} Bxc4 {[%emt 0:03:51]} 24. Rxc4 {[%emt 0:00:07]} fxg4 {[%emt 0:00:35]} 25. hxg4 {[%emt 0:00:43]} h5 {[%emt 0:00:16]} 26. gxh5 {[%emt 0:23:14]} Rxf2 {[%emt 0:00:05]} 27. Rcxe4 {[%emt 0:00:39]} Rb5 {[%emt 0:06:15]} 28. Rb4 {[%emt 0:05:09]} Rxb4 {[%emt 0:00:03]} 29. axb4 {[%emt 0:00:09]} Rf5 {[%emt 0:00:04]} 30. Rh1 {[%emt 0:06:02]} Kh7 {[%emt 0:00:08]} 31. Kc2 {[%emt 0:14:16]} Kh6 {[%emt 0:00:44]} 32. c4 {[%emt 0:00:12]} Rf2+ {[%emt 0:03:44]} 33. Kc3 {[%emt 0:00:22]} Rf3+ {[%emt 0:00:04]} 34. Kd4 {[%emt 0:01:01]} Rb3 {[%emt 0:00:04]} 35. Kc5 {[%emt 0:01:03]} Rxb2 {[%emt 0:00:02]} 36. b5 {[%emt 0:02:58]} a3 {[%emt 0:01:08]} 37. Kb6 {[%emt 0:00:45]} a2 {[%emt 0:11:45]} 38. Ra1 {[%emt 0:00:21]} Kxh5 {[%emt 0:00:05]} 39. Kxb7 {[%emt 0:01:38]} Rc2 {[%emt 0:02:09]} 40. b6 {[%emt 0:01:50]} g5 {[%emt 0:00:31]} 41. Ka6 {[%emt 0:36:34]} Rxc4 {[%emt 0:30:02]} 42. Rxa2 {[%emt 0:00:14]} Rb4 {[%emt 0:01:52]} 43. b7 {[%emt 0:00:00]} Kh4 {[%emt 0:00:00]} 44. Rh2+ {[%emt 0:00:00]} Kg3 {[%emt 0:00:00]} 45. Rh6 {[%emt 0:00:00]} Rxb7 {[%emt 0:00:00]} 46. Kxb7 {[%emt 0:00:00]} g4 {[%emt 0:00:00]} 47. Kc6 {[%emt 0:00:00]} Kf3 {[%emt 0:00:00]} 48. Rf6+ {[%emt 0:00:00]} Ke3 {[%emt 0:00:00]} 49. Rg6 {[%emt 0:00:00]} Kf3 {[%emt 0:00:00]} 50. Kd5 {[%emt 0:00:00]} g3 {[%emt 0:00:00]} 51. Rxg3+ {[%emt 0:00:00]} Kxg3 {[%emt 0:00:04]} 52. Ke4 {[%emt 0:00:06]} 1/2-1/2

[Event "Teplice Open 2019"]
[Site "Teplice"]
[Date "2019.06.18"]
[Round "4.11"]
[White "Ankit, R. Rajpara"]
[Black "Santos Latasa, Jaime"]
[Result "0-1"]
[ECO "E69"]
[WhiteElo "2447"]
[BlackElo "2588"]
[Annotator "ChessBase"]
[PlyCount "104"]
[EventDate "2019.06.15"]
[EventType "swiss"]
[EventCountry "CZE"]
[SourceTitle "playchess.com"]
[Source "ChessBase"]
[SourceQuality "1"]
[TimeControl "40/5400+30:1800+30"]

1. d4 {[%emt 0:00:00]} Nf6 {[%emt 0:00:00]} 2. c4 {[%emt 0:00:03]} g6 {[%emt 0:00:02]} 3. g3 {[%emt 0:00:14]} Bg7 {[%emt 0:00:07]} 4. Bg2 {[%emt 0:00:11]} O-O {[%emt 0:00:07]} 5. Nf3 {[%emt 0:00:12]} d6 {[%emt 0:00:07]} 6. O-O {[%emt 0:00:15]} Nbd7 {[%emt 0:00:07]} 7. Nc3 {[%emt 0:00:21]} e5 {[%emt 0:00:07]} 8. e4 {[%emt 0:00:15]} c6 {[%emt 0:00:24]} 9. h3 {[%emt 0:00:17]} Qb6 {[%emt 0:00:24]} 10. Re1 {[%emt 0:00:17]} exd4 {[%emt 0:00:18]} 11. Nxd4 {[%emt 0:00:15]} Re8 {[%emt 0:00:05]} 12. Nc2 {[%emt 0:00:37]} Nc5 {[%emt 0:00:16]} 13. b4 {[%emt 0:04:50]} Ne6 {[%emt 0:00:27]} 14. Be3 {[%emt 0:09:06]} Qa6 {[%emt 0:00:55]} 15. Qd3 {[%emt 0:16:14]} Nd7 {[%emt 0:07:20]} 16. f4 {[%emt 0:16:59]} Nb6 {[%emt 0:01:21]} 17. Bxb6 {[%emt 0:02:33]} Qxb6+ {[%emt 0:01:28]} 18. Kh2 {[%emt 0:00:09]} a5 {[%emt 0:07:13]} 19. a3 {[%emt 0:06:43]} h5 {[%emt 0:00:38]} 20. h4 {[%emt 0:03:19]} Qd8 {[%emt 0:00:29]} 21. Rad1 {[%emt 0:02:32]} axb4 {[%emt 0:02:50]} 22. axb4 {[%emt 0:00:07]} Nxf4 {[%emt 0:01:08]} 23. gxf4 {[%emt 0:00:10]} Qxh4+ {[%emt 0:00:04]} 24. Kg1 {[%emt 0:00:09]} Qxf4 {[%emt 0:00:09]} 25. Ne2 {[%emt 0:05:58]} Qh4 {[%emt 0:00:59]} 26. Ncd4 {[%emt 0:01:40]} Bg4 {[%emt 0:07:02]} 27. Nf3 {[%emt 0:03:41]} Bxf3 {[%emt 0:00:34]} 28. Qxf3 {[%emt 0:00:45]} Be5 {[%emt 0:00:14]} 29. Qh3 {[%emt 0:04:50]} Qg5 {[%emt 0:02:30]} 30. b5 {[%emt 0:07:53]} Ra2 {[%emt 0:04:25]} 31. Rd3 {[%emt 0:05:11]} Rea8 {[%emt 0:05:07]} 32. bxc6 {[%emt 0:03:22]} bxc6 {[%emt 0:00:37]} 33. Qf3 {[%emt 0:00:58]} Qh4 {[%emt 0:04:40]} 34. Qf2 {[%emt 0:00:45]} Qxf2+ {[%emt 0:02:00]} 35. Kxf2 {[%emt 0:00:06]} Rc2 {[%emt 0:00:06]} 36. Bf3 {[%emt 0:04:08]} Rxc4 {[%emt 0:00:27]} 37. Rb1 {[%emt 0:00:10]} Rc2 {[%emt 0:04:49]} 38. Rb7 {[%emt 0:01:15]} c5 {[%emt 0:00:24]} 39. Rdb3 {[%emt 0:00:41]} Raa2 {[%emt 0:01:11]} 40. Rd7 {[%emt 0:01:27]} Bd4+ {[%emt 0:01:03]} 41. Kg3 {[%emt 0:04:48]} Rxe2 {[%emt 0:00:22]} 42. Bxe2 {[%emt 0:00:08]} Rxe2 {[%emt 0:00:05]} 43. Rbb7 {[%emt 0:01:17]} h4+ {[%emt 0:03:42]} 44. Kxh4 {[%emt 0:00:35]} Rxe4+ {[%emt 0:00:18]} 45. Kh3 {[%emt 0:00:11]} Rf4 {[%emt 0:00:33]} 46. Rxd6 {[%emt 0:00:08]} Kg7 {[%emt 0:00:07]} 47. Rc6 {[%emt 0:01:22]} g5 {[%emt 0:01:10]} 48. Kg3 {[%emt 0:00:47]} c4 {[%emt 0:02:07]} 49. Kg2 {[%emt 0:06:02]} c3 {[%emt 0:00:58]} 50. Rd7 {[%emt 0:00:12]} Be5 {[%emt 0:01:51]} 51. Rb7 {[%emt 0:02:33]} Rf6 {[%emt 0:02:22]} 52. Rc5 {[%emt 0:02:14]} Re6 {[%emt 0:00:35]} 0-1

[Event "Teplice Open 2019"]
[Site "Teplice"]
[Date "2019.06.18"]
[Round "4.12"]
[White "Hracek, Zbynek"]
[Black "Halvax, Georg"]
[Result "1/2-1/2"]
[ECO "B23"]
[WhiteElo "2582"]
[BlackElo "2408"]
[Annotator "ChessBase"]
[PlyCount "60"]
[EventDate "2019.06.15"]
[EventType "swiss"]
[EventCountry "CZE"]
[SourceTitle "playchess.com"]
[Source "ChessBase"]
[SourceQuality "1"]
[TimeControl "40/5400+30:1800+30"]

1. e4 {[%emt 0:00:00]} c5 {[%emt 0:00:00]} 2. Nc3 {[%emt 0:00:00]} Nc6 {[%emt 0:00:25]} 3. Bb5 {[%emt 0:00:01]} Nd4 {[%emt 0:02:31]} 4. Nf3 {[%emt 0:00:17]} Nxb5 {[%emt 0:00:32]} 5. Nxb5 {[%emt 0:00:02]} d5 {[%emt 0:07:15]} 6. exd5 {[%emt 0:04:41]} a6 {[%emt 0:00:13]} 7. Nc3 {[%emt 0:00:05]} Nf6 {[%emt 0:00:09]} 8. O-O {[%emt 0:32:13]} Nxd5 {[%emt 0:04:19]} 9. Ne5 {[%emt 0:00:27]} g6 {[%emt 0:09:48]} 10. Nc4 {[%emt 0:22:23]} Be6 {[%emt 0:13:05]} 11. Ne4 {[%emt 0:02:57]} Nf6 {[%emt 0:02:30]} 12. Nxf6+ {[%emt 0:00:50]} exf6 {[%emt 0:00:06]} 13. b3 {[%emt 0:02:42]} b5 {[%emt 0:00:55]} 14. Ne3 {[%emt 0:01:18]} Bg7 {[%emt 0:01:36]} 15. Bb2 {[%emt 0:00:04]} O-O {[%emt 0:00:44]} 16. Qf3 {[%emt 0:04:08]} f5 {[%emt 0:03:36]} 17. Bxg7 {[%emt 0:00:30]} Kxg7 {[%emt 0:00:02]} 18. Rad1 {[%emt 0:12:21]} Qd6 {[%emt 0:14:22]} 19. g3 {[%emt 0:01:51]} Rad8 {[%emt 0:08:19]} 20. Rfe1 {[%emt 0:00:09]} Qd4 {[%emt 0:10:32]} 21. Ng2 {[%emt 0:00:51]} Bd5 {[%emt 0:02:25]} 22. Qe3 {[%emt 0:01:04]} Qxe3 {[%emt 0:15:15]} 23. Rxe3 {[%emt 0:00:36]} Be4 {[%emt 0:00:14]} 24. d3 {[%emt 0:09:18]} Bxg2 {[%emt 0:01:12]} 25. Kxg2 {[%emt 0:00:02]} Rfe8 {[%emt 0:00:12]} 26. Kf3 {[%emt 0:01:45]} Re6 {[%emt 0:00:26]} 27. Rde1 {[%emt 0:01:57]} Kf6 {[%emt 0:00:05]} 28. Ke2 {[%emt 0:00:20]} b4 {[%emt 0:01:02]} 29. Kd2 {[%emt 0:00:23]} a5 {[%emt 0:00:17]} 30. f4 {[%emt 0:01:09]} Rd5 {[%emt 0:00:21]} 1/2-1/2

[Event "Teplice Open 2019"]
[Site "Teplice"]
[Date "2019.06.18"]
[Round "4.13"]
[White "Mikes, Jan"]
[Black "Romanov, Evgeny"]
[Result "0-1"]
[ECO "C45"]
[WhiteElo "2404"]
[BlackElo "2577"]
[Annotator "ChessBase"]
[PlyCount "30"]
[EventDate "2019.06.15"]
[EventType "swiss"]
[EventCountry "CZE"]
[SourceTitle "playchess.com"]
[Source "ChessBase"]
[SourceQuality "1"]
[TimeControl "40/5400+30:1800+30"]

1. e4 {[%emt 0:00:00]} e5 {[%emt 0:02:40]} 2. Nf3 {[%emt 0:00:00]} Nc6 {[%emt 0:00:08]} 3. d4 {[%emt 0:00:03]} exd4 {[%emt 0:00:11]} 4. Nxd4 {[%emt 0:00:05]} Bc5 {[%emt 0:00:10]} 5. Nb3 {[%emt 0:00:05]} Bb6 {[%emt 0:00:08]} 6. Nc3 {[%emt 0:00:05]} d6 {[%emt 0:00:08]} 7. Qe2 {[%emt 0:00:26]} a5 {[%emt 0:00:23]} 8. Nd5 {[%emt 0:01:28]} a4 {[%emt 0:06:23]} 9. Nxb6 {[%emt 0:10:18]} cxb6 {[%emt 0:00:10]} 10. Nd2 {[%emt 0:00:06]} Nf6 {[%emt 0:00:23]} 11. Nc4 {[%emt 0:22:44]} b5 {[%emt 0:09:47]} 12. Na3 {[%emt 0:09:35]} b4 {[%emt 0:06:50]} 13. Nb5 {[%emt 0:01:51]} O-O {[%emt 0:01:29]} 14. Bf4 {[%emt 0:08:50]} a3 {[%emt 0:06:06]} 15. bxa3 {[%emt 0:13:43]} Nxe4 {[%emt 0:00:46]} 0-1

[Event "Teplice Open 2019"]
[Site "Teplice"]
[Date "2019.06.18"]
[Round "4.14"]
[White "Shevchenko, Kirill"]
[Black "Rubes, Jan"]
[Result "0-1"]
[ECO "D35"]
[WhiteElo "2539"]
[BlackElo "2352"]
[Annotator "ChessBase"]
[PlyCount "108"]
[EventDate "2019.06.15"]
[EventType "swiss"]
[EventCountry "CZE"]
[SourceTitle "playchess.com"]
[Source "ChessBase"]
[SourceQuality "1"]
[TimeControl "40/5400+30:1800+30"]

1. d4 {[%emt 0:00:00]} Nf6 {[%emt 0:00:03]} 2. c4 {[%emt 0:00:00]} e6 {[%emt 0:01:15]} 3. Nc3 {[%emt 0:00:00]} d5 {[%emt 0:01:14]} 4. cxd5 {[%emt 0:00:10]} Nxd5 {[%emt 0:00:17]} 5. e4 {[%emt 0:00:06]} Nxc3 {[%emt 0:00:06]} 6. bxc3 {[%emt 0:00:02]} c5 {[%emt 0:00:06]} 7. Rb1 {[%emt 0:00:06]} cxd4 {[%emt 0:03:04]} 8. cxd4 {[%emt 0:00:05]} Nc6 {[%emt 0:05:37]} 9. Bb5 {[%emt 0:00:55]} a6 {[%emt 0:03:36]} 10. Bxc6+ {[%emt 0:00:28]} bxc6 {[%emt 0:00:04]} 11. Nf3 {[%emt 0:03:09]} Bd6 {[%emt 0:13:54]} 12. O-O {[%emt 0:04:38]} O-O {[%emt 0:00:43]} 13. Qa4 {[%emt 0:15:18]} Bd7 {[%emt 0:15:22]} 14. Qc2 {[%emt 0:17:25]} h6 {[%emt 0:02:41]} 15. Qc3 {[%emt 0:05:15]} Qc7 {[%emt 0:17:15]} 16. Ba3 {[%emt 0:04:29]} Rfb8 {[%emt 0:01:47]} 17. Bxd6 {[%emt 0:07:20]} Qxd6 {[%emt 0:00:34]} 18. Ne5 {[%emt 0:03:13]} Be8 {[%emt 0:01:20]} 19. Nc4 {[%emt 0:01:36]} Qd8 {[%emt 0:02:54]} 20. e5 {[%emt 0:10:34]} Rxb1 {[%emt 0:06:45]} 21. Rxb1 {[%emt 0:00:04]} c5 {[%emt 0:00:38]} 22. dxc5 {[%emt 0:02:22]} Rb8 {[%emt 0:05:19]} 23. Nb6 {[%emt 0:04:18]} Bc6 {[%emt 0:00:13]} 24. f3 {[%emt 0:02:21]} Qg5 {[%emt 0:01:11]} 25. Rd1 {[%emt 0:01:57]} Rd8 {[%emt 0:01:00]} 26. Rd6 {[%emt 0:04:13]} h5 {[%emt 0:11:02]} 27. h4 {[%emt 0:06:44]} Qxh4 {[%emt 0:00:34]} 28. Qd2 {[%emt 0:00:19]} Bd5 {[%emt 0:03:06]} 29. c6 {[%emt 0:00:30]} Rxd6 {[%emt 0:00:27]} 30. exd6 {[%emt 0:00:06]} Bxc6 {[%emt 0:00:08]} 31. d7 {[%emt 0:01:10]} Qd8 {[%emt 0:00:50]} 32. Qb4 {[%emt 0:04:18]} Bxd7 {[%emt 0:01:24]} 33. Qd4 {[%emt 0:01:39]} e5 {[%emt 0:00:55]} 34. Qd6 {[%emt 0:00:01]} Qh4 {[%emt 0:01:03]} 35. Qxd7 {[%emt 0:00:12]} Qe1+ {[%emt 0:00:19]} 36. Kh2 {[%emt 0:00:01]} Qh4+ {[%emt 0:00:15]} 37. Qh3 {[%emt 0:00:04]} Qf4+ {[%emt 0:00:09]} 38. g3 {[%emt 0:02:08]} Qxf3 {[%emt 0:00:20]} 39. Nd7 {[%emt 0:01:16]} h4 {[%emt 0:01:19]} 40. g4 {[%emt 0:00:56]} Qf4+ {[%emt 0:00:16]} 41. Kg1 {[%emt 0:03:32]} Qd4+ {[%emt 0:00:00]} 42. Kh1 {[%emt 0:00:20]} Qxd7 {[%emt 0:00:03]} 43. Qxh4 {[%emt 0:00:02]} Qd5+ {[%emt 0:01:07]} 44. Kg1 {[%emt 0:00:05]} Qd4+ {[%emt 0:00:25]} 45. Kg2 {[%emt 0:00:28]} f5 {[%emt 0:00:50]} 46. Qe7 {[%emt 0:00:04]} Qxg4+ {[%emt 0:00:04]} 47. Kf2 {[%emt 0:00:16]} Qf4+ {[%emt 0:03:08]} 48. Kg2 {[%emt 0:00:14]} Kh7 {[%emt 0:00:29]} 49. Qe8 {[%emt 0:00:51]} Qg4+ {[%emt 0:00:19]} 50. Kh1 {[%emt 0:00:12]} e4 {[%emt 0:00:12]} 51. a4 {[%emt 0:00:04]} e3 {[%emt 0:01:20]} 52. Kh2 {[%emt 0:00:17]} e2 {[%emt 0:00:39]} 53. a5 {[%emt 0:00:12]} Qh4+ {[%emt 0:00:17]} 54. Kg2 {[%emt 0:00:04]} Qe4+ {[%emt 0:00:05]} 0-1

[Event "Teplice Open 2019"]
[Site "Teplice"]
[Date "2019.06.18"]
[Round "4.15"]
[White "Di Nicolantonio, Lucas"]
[Black "Dragnev, Valentin"]
[Result "1/2-1/2"]
[ECO "B20"]
[WhiteElo "2379"]
[BlackElo "2521"]
[Annotator "ChessBase"]
[PlyCount "78"]
[EventDate "2019.06.15"]
[EventType "swiss"]
[EventCountry "CZE"]
[SourceTitle "playchess.com"]
[Source "ChessBase"]
[SourceQuality "1"]
[TimeControl "40/5400+30:1800+30"]

1. g3 {[%emt 0:00:00]} c5 {[%emt 0:01:54]} 2. f4 {[%emt 0:01:28]} g6 {[%emt 0:00:56]} 3. Bg2 {[%emt 0:00:17]} Bg7 {[%emt 0:00:12]} 4. Nf3 {[%emt 0:00:39]} Nc6 {[%emt 0:00:32]} 5. d3 {[%emt 0:01:42]} e6 {[%emt 0:02:04]} 6. O-O {[%emt 0:01:15]} Nge7 {[%emt 0:00:10]} 7. e4 {[%emt 0:01:39]} O-O {[%emt 0:00:30]} 8. c3 {[%emt 0:00:58]} b6 {[%emt 0:02:42]} 9. d4 {[%emt 0:05:44]} Ba6 {[%emt 0:08:02]} 10. Rf2 {[%emt 0:01:28]} Rc8 {[%emt 0:01:44]} 11. Na3 {[%emt 0:04:17]} cxd4 {[%emt 0:02:34]} 12. cxd4 {[%emt 0:00:20]} b5 {[%emt 0:01:43]} 13. Nc2 {[%emt 0:03:37]} Qb6 {[%emt 0:01:27]} 14. Be3 {[%emt 0:24:53]} d5 {[%emt 0:00:17]} 15. e5 {[%emt 0:00:08]} b4 {[%emt 0:02:47]} 16. g4 {[%emt 0:03:32]} Rc7 {[%emt 0:01:38]} 17. Bh3 {[%emt 0:02:00]} Rfc8 {[%emt 0:14:12]} 18. Kh1 {[%emt 0:14:56]} Nb8 {[%emt 0:17:46]} 19. f5 {[%emt 0:05:15]} b3 {[%emt 0:09:46]} 20. Nce1 {[%emt 0:00:17]} Nec6 {[%emt 0:00:52]} 21. Qxb3 {[%emt 0:13:46]} Nb4 {[%emt 0:04:56]} 22. Bd2 {[%emt 0:03:18]} N8c6 {[%emt 0:01:15]} 23. Bc3 {[%emt 0:01:15]} Bc4 {[%emt 0:01:54]} 24. Qd1 {[%emt 0:00:06]} Nxa2 {[%emt 0:00:17]} 25. Nd3 {[%emt 0:05:37]} Nxc3 {[%emt 0:02:25]} 26. bxc3 {[%emt 0:00:04]} Bxd3 {[%emt 0:00:05]} 27. Qxd3 {[%emt 0:00:04]} Nxe5 {[%emt 0:00:13]} 28. Nxe5 {[%emt 0:00:08]} Rxc3 {[%emt 0:02:18]} 29. Qf1 {[%emt 0:01:40]} Bxe5 {[%emt 0:00:16]} 30. dxe5 {[%emt 0:02:57]} Rxh3 {[%emt 0:00:48]} 31. fxe6 {[%emt 0:00:26]} fxe6 {[%emt 0:00:54]} 32. Rf7 {[%emt 0:00:14]} Qe3 {[%emt 0:02:03]} 33. Raxa7 {[%emt 0:01:57]} Qe4+ {[%emt 0:13:18]} 34. Kg1 {[%emt 0:00:12]} Qxg4+ {[%emt 0:00:01]} 35. Kh1 {[%emt 0:00:11]} Qe4+ {[%emt 0:00:05]} 36. Kg1 {[%emt 0:00:05]} Qg4+ {[%emt 0:01:55]} 37. Kh1 {[%emt 0:00:04]} Rxh2+ {[%emt 0:03:07]} 38. Kxh2 {[%emt 0:00:04]} Rc2+ {[%emt 0:00:15]} 39. Rf2 {[%emt 0:00:39]} Qf4+ {[%emt 0:00:37]} 1/2-1/2

[Event "Teplice Open 2019"]
[Site "Teplice"]
[Date "2019.06.18"]
[Round "4.16"]
[White "Krzyzanowski, Marcin"]
[Black "Pacan-Milej, Kosma"]
[Result "1-0"]
[ECO "B94"]
[WhiteElo "2510"]
[BlackElo "2247"]
[Annotator "ChessBase"]
[PlyCount "91"]
[EventDate "2019.06.15"]
[EventType "swiss"]
[EventCountry "CZE"]
[SourceTitle "playchess.com"]
[Source "ChessBase"]
[SourceQuality "1"]
[TimeControl "40/5400+30:1800+30"]

1. e4 {[%emt 0:00:00]} c5 {[%emt 0:00:00]} 2. Nf3 {[%emt 0:00:00]} d6 {[%emt 0:00:00]} 3. d4 {[%emt 0:00:32]} Nf6 {[%emt 0:00:00]} 4. Nc3 {[%emt 0:00:03]} cxd4 {[%emt 0:00:00]} 5. Nxd4 {[%emt 0:00:05]} a6 {[%emt 0:00:00]} 6. Bg5 {[%emt 0:00:20]} Nbd7 {[%emt 0:00:00]} 7. Bc4 {[%emt 0:00:19]} Qa5 {[%emt 0:00:12]} 8. Qd2 {[%emt 0:01:11]} e6 {[%emt 0:00:26]} 9. Nb3 {[%emt 0:08:00]} Qc7 {[%emt 0:01:11]} 10. Bd3 {[%emt 0:00:25]} Be7 {[%emt 0:03:45]} 11. a4 {[%emt 0:04:45]} b6 {[%emt 0:01:08]} 12. O-O {[%emt 0:01:34]} Bb7 {[%emt 0:00:30]} 13. Rae1 {[%emt 0:02:18]} h6 {[%emt 0:12:04]} 14. Bf4 {[%emt 0:09:39]} Ne5 {[%emt 0:06:22]} 15. Bg3 {[%emt 0:02:56]} Nh5 {[%emt 0:01:24]} 16. Ne2 {[%emt 0:04:58]} Rc8 {[%emt 0:06:17]} 17. Nbd4 {[%emt 0:03:00]} O-O {[%emt 0:03:12]} 18. c3 {[%emt 0:04:48]} Nxd3 {[%emt 0:07:59]} 19. Qxd3 {[%emt 0:00:19]} Qc4 {[%emt 0:01:17]} 20. Qf3 {[%emt 0:08:58]} Nf6 {[%emt 0:02:07]} 21. Nf4 {[%emt 0:18:53]} Qxa4 {[%emt 0:22:41]} 22. Nh5 {[%emt 0:02:06]} Qd7 {[%emt 0:08:37]} 23. Bf4 {[%emt 0:09:42]} Nxh5 {[%emt 0:11:10]} 24. Qxh5 {[%emt 0:00:06]} Bf6 {[%emt 0:02:08]} 25. Qh3 {[%emt 0:07:46]} Rfd8 {[%emt 0:01:25]} 26. Bd2 {[%emt 0:03:52]} e5 {[%emt 0:04:13]} 27. Nf5 {[%emt 0:00:34]} d5 {[%emt 0:00:34]} 28. Bxh6 {[%emt 0:01:30]} g6 {[%emt 0:01:35]} 29. f4 {[%emt 0:03:49]} dxe4 {[%emt 0:01:28]} 30. fxe5 {[%emt 0:00:05]} Bxe5 {[%emt 0:00:08]} 31. Rd1 {[%emt 0:01:36]} Qe6 {[%emt 0:01:24]} 32. Rxd8+ {[%emt 0:00:15]} Rxd8 {[%emt 0:00:01]} 33. Bg5 {[%emt 0:00:04]} gxf5 {[%emt 0:02:06]} 34. Bxd8 {[%emt 0:00:04]} f4 {[%emt 0:00:03]} 35. Qxe6 {[%emt 0:01:06]} fxe6 {[%emt 0:00:02]} 36. g3 {[%emt 0:01:23]} fxg3 37. hxg3 {[%emt 0:00:02]} b5 {[%emt 0:02:18]} 38. Kf2 {[%emt 0:00:40]} Kf7 {[%emt 0:00:07]} 39. g4 {[%emt 0:00:49]} Ke8 {[%emt 0:00:50]} 40. Bb6 {[%emt 0:00:25]} Bf4 {[%emt 0:00:12]} 41. Be3 {[%emt 0:30:25]} e5 {[%emt 0:30:08]} 42. Rh1 {[%emt 0:00:00]} Bd5 {[%emt 0:00:00]} 43. g5 {[%emt 0:00:00]} Kf7 {[%emt 0:00:00]} 44. Rh6 {[%emt 0:00:00]} Kg7 {[%emt 0:00:00]} 45. Rxa6 {[%emt 0:00:00]} Bc4 {[%emt 0:00:00]} 46. Rf6 {[%emt 0:00:00]} 1-0

[Event "Teplice Open 2019"]
[Site "Teplice"]
[Date "2019.06.18"]
[Round "4.17"]
[White "Sikora, Jan"]
[Black "Salomon, Johan"]
[Result "0-1"]
[ECO "A07"]
[WhiteElo "2170"]
[BlackElo "2509"]
[Annotator "ChessBase"]
[PlyCount "114"]
[EventDate "2019.06.15"]
[EventType "swiss"]
[EventCountry "CZE"]
[SourceTitle "playchess.com"]
[Source "ChessBase"]
[SourceQuality "1"]
[TimeControl "40/5400+30:1800+30"]

1. Nf3 {[%emt 0:01:10]} d5 {[%emt 0:00:08]} 2. g3 {[%emt 0:00:15]} g6 {[%emt 0:00:05]} 3. Bg2 {[%emt 0:00:04]} Bg7 {[%emt 0:00:04]} 4. O-O {[%emt 0:00:24]} e5 {[%emt 0:00:25]} 5. d3 {[%emt 0:01:47]} Ne7 {[%emt 0:00:09]} 6. c4 {[%emt 0:05:42]} c6 {[%emt 0:00:51]} 7. e4 {[%emt 0:08:24]} O-O {[%emt 0:15:09]} 8. Re1 {[%emt 0:09:57]} d4 {[%emt 0:04:32]} 9. Bd2 {[%emt 0:08:26]} Bg4 {[%emt 0:04:27]} 10. Qc1 {[%emt 0:05:03]} c5 {[%emt 0:04:40]} 11. Bh6 {[%emt 0:04:26]} f6 {[%emt 0:02:17]} 12. Bxg7 {[%emt 0:01:23]} Kxg7 {[%emt 0:00:03]} 13. Nxe5 {[%emt 0:08:55]} fxe5 {[%emt 0:00:53]} 14. Qg5 {[%emt 0:00:18]} h5 {[%emt 0:10:51]} 15. Qxe5+ {[%emt 0:00:07]} Kh7 {[%emt 0:02:14]} 16. Qxc5 {[%emt 0:00:14]} Nd7 {[%emt 0:01:07]} 17. Qa3 {[%emt 0:11:42]} Nc6 {[%emt 0:10:21]} 18. Nd2 {[%emt 0:06:56]} a5 {[%emt 0:04:29]} 19. h3 {[%emt 0:10:02]} Be6 {[%emt 0:00:33]} 20. Qd6 {[%emt 0:04:07]} Ra6 {[%emt 0:05:22]} 21. Rac1 {[%emt 0:07:03]} Qf6 {[%emt 0:04:23]} 22. Re2 {[%emt 0:03:31]} Nb4 {[%emt 0:02:34]} 23. Qc7 {[%emt 0:00:29]} Qe5 {[%emt 0:04:59]} 24. Qxe5 {[%emt 0:00:52]} Nxe5 {[%emt 0:00:03]} 25. Nb3 {[%emt 0:00:42]} Nexd3 {[%emt 0:02:40]} 26. Rd1 {[%emt 0:00:09]} Bxc4 {[%emt 0:04:55]} 27. Nxd4 {[%emt 0:00:04]} Rd6 {[%emt 0:00:49]} 28. b3 {[%emt 0:00:46]} Ba6 {[%emt 0:03:48]} 29. Nf3 {[%emt 0:00:44]} Rc6 {[%emt 0:05:37]} 30. Red2 {[%emt 0:00:30]} Rc2 {[%emt 0:00:47]} 31. Rxc2 {[%emt 0:00:42]} Nxc2 {[%emt 0:00:01]} 32. Rd2 {[%emt 0:00:16]} Ncb4 {[%emt 0:00:22]} 33. Ng5+ {[%emt 0:00:18]} Kh6 {[%emt 0:00:14]} 34. f4 {[%emt 0:00:03]} Rc8 {[%emt 0:01:48]} 35. a3 {[%emt 0:00:55]} Rc2 {[%emt 0:00:54]} 36. Rd1 {[%emt 0:00:02]} Nc6 {[%emt 0:01:01]} 37. Ne6 {[%emt 0:00:46]} Rc1 {[%emt 0:02:37]} 38. Rxc1 {[%emt 0:00:03]} Nxc1 {[%emt 0:00:02]} 39. Nc5 {[%emt 0:00:12]} Nd3 {[%emt 0:01:18]} 40. Nxa6 {[%emt 0:00:57]} bxa6 {[%emt 0:00:03]} 41. e5 {[%emt 0:31:27]} Nd4 {[%emt 0:30:48]} 42. Bf1 {[%emt 0:00:00]} Ne1 {[%emt 0:00:00]} 43. b4 {[%emt 0:00:00]} axb4 {[%emt 0:00:00]} 44. axb4 {[%emt 0:00:00]} Nb5 {[%emt 0:00:00]} 45. Kf2 {[%emt 0:00:00]} Nc2 {[%emt 0:00:00]} 46. g4 {[%emt 0:00:00]} h4 {[%emt 0:00:00]} 47. g5+ {[%emt 0:00:00]} Kg7 {[%emt 0:00:00]} 48. Kf3 {[%emt 0:00:00]} Nxb4 {[%emt 0:00:00]} 49. Kg4 {[%emt 0:00:00]} Nd4 {[%emt 0:00:00]} 50. Bxa6 {[%emt 0:00:00]} Nxa6 {[%emt 0:00:00]} 51. Kxh4 {[%emt 0:00:00]} Nc5 {[%emt 0:00:00]} 52. Kg4 {[%emt 0:00:00]} Nf5 {[%emt 0:00:00]} 53. h4 {[%emt 0:00:00]} Nxh4 {[%emt 0:00:00]} 54. Kxh4 {[%emt 0:00:00]} Ne6 {[%emt 0:00:00]} 55. Kg4 {[%emt 0:06:12]} Nd4 {[%emt 0:00:00]} 56. e6 {[%emt 0:00:09]} Kf8 {[%emt 0:00:00]} 57. f5 {[%emt 0:00:03]} Nxf5 {[%emt 0:00:00]} 0-1